[Event "EYCC Girls-U14 2019"]
[Site "Bratislava"]
[Date "2019.08.05"]
[Round "4.2"]
[White "Lhotska, Anna"]
[Black "Anacoglu, Cisel"]
[Result "0-1"]
[ECO "A11"]
[WhiteElo "1922"]
[BlackElo "1869"]
[Annotator "NA"]
[PlyCount "108"]
[EventDate "2019.08.02"]
[EventType "swiss"]
[EventCountry "SVK"]
[SourceTitle "playchess.com"]
[Source "ChessBase"]
[SourceQuality "1"]
[TimeControl "40/5400+30:1800+30"]

1. c4 {[%emt 0:00:00]} c6 {[%emt 0:00:00]} 2. Nf3 {[%emt 0:00:00]} d5 {[%emt 0:00:00]} 3. e3 {[%emt 0:00:00]} Nf6 {[%emt 0:00:00]} 4. Nc3 {[%emt 0:00:04]} Bf5 {[%emt 0:00:53]} 5. cxd5 {[%emt 0:06:22]} cxd5 {[%emt 0:00:06]} 6. Qb3 {[%emt 0:00:18]} Bc8 {[%emt 0:00:07]} 7. d4 {[%emt 0:02:24]} e6 {[%emt 0:01:05]} 8. Bd3 {[%emt 0:02:15]} Nc6 {[%emt 0:01:08]} 9. O-O {[%emt 0:01:12]} Be7 {[%emt 0:01:44]} 10. Bd2 {[%emt 0:10:06]} O-O {[%emt 0:00:35]} 11. Rfc1 {[%emt 0:01:05]} Bd7 {[%emt 0:04:25]} 12. Ne5 {[%emt 0:01:40]} Qb6 {[%emt 0:14:25]} 13. Na4 {[%emt 0:12:36]} Qxb3 {[%emt 0:01:51]} 14. axb3 {[%emt 0:00:07]} Rfc8 {[%emt 0:01:36]} 15. Nxc6 {[%emt 0:07:42]} Bxc6 {[%emt 0:00:31]} 16. b4 {[%emt 0:00:30]} Ne4 {[%emt 0:12:14]} 17. Be1 {[%emt 0:07:47]} Bxa4 {[%emt 0:04:22]} 18. Rxc8+ {[%emt 0:02:05]} Rxc8 {[%emt 0:00:08]} 19. Rxa4 {[%emt 0:00:10]} g6 {[%emt 0:05:40]} 20. f3 {[%emt 0:04:55]} Rc1 {[%emt 0:02:40]} 21. fxe4 {[%emt 0:02:47]} Rxe1+ {[%emt 0:00:11]} 22. Kf2 {[%emt 0:00:10]} Rd1 {[%emt 0:00:36]} 23. Be2 {[%emt 0:01:49]} Rd2 {[%emt 0:01:00]} 24. Rxa7 dxe4 {[%emt 0:04:55]} 25. Rxb7 {[%emt 0:02:58]} Bd6 {[%emt 0:00:10]} 26. g3 {[%emt 0:01:53]} Rxb2 {[%emt 0:02:22]} 27. b5 {[%emt 0:00:51]} h5 {[%emt 0:02:26]} 28. Rd7 {[%emt 0:01:55]} Bf8 {[%emt 0:00:45]} 29. Rd8 {[%emt 0:03:39]} Kg7 {[%emt 0:00:38]} 30. h3 {[%emt 0:11:09]} Be7 {[%emt 0:00:33]} 31. Rd7 {[%emt 0:00:15]} Bg5 {[%emt 0:01:19]} 32. d5 {[%emt 0:01:26]} exd5 {[%emt 0:16:34]} 33. Rxd5 {[%emt 0:00:12]} Kf6 {[%emt 0:03:07]} 34. h4 {[%emt 0:05:00]} Bh6 {[%emt 0:00:09]} 35. Rd6+ {[%emt 0:01:03]} Ke5 {[%emt 0:03:04]} 36. Rd7 {[%emt 0:00:14]} f5 {[%emt 0:00:50]} 37. Rh7 {[%emt 0:00:54]} Bf8 {[%emt 0:00:27]} 38. Rc7 {[%emt 0:05:08]} Bd6 {[%emt 0:00:12]} 39. Rc6 {[%emt 0:00:07]} Ke6 {[%emt 0:03:46]} 40. Kf1 {[%emt 0:00:00]} Ke7 {[%emt 0:00:00]} 41. Kf2 {[%emt 0:17:29]} Bxg3+ {[%emt 0:11:16]} 42. Kxg3 {[%emt 0:03:06]} Rxe2 {[%emt 0:00:03]} 43. Kf4 {[%emt 0:01:24]} Kf7 {[%emt 0:07:51]} 44. b6 {[%emt 0:00:59]} Rb2 {[%emt 0:00:20]} 45. Rc7+ {[%emt 0:02:55]} Kf6 {[%emt 0:01:24]} 46. Rc6+ {[%emt 0:00:14]} Kf7 {[%emt 0:00:30]} 47. Ke5 {[%emt 0:03:20]} Rb5+ {[%emt 0:04:56]} 48. Kd6 {[%emt 0:03:59]} f4 {[%emt 0:02:05]} 49. exf4 {[%emt 0:00:47]} e3 {[%emt 0:00:07]} 50. Rc1 {[%emt 0:06:40]} Rxb6+ {[%emt 0:00:04]} 51. Kd5 {[%emt 0:00:09]} Re6 {[%emt 0:00:19]} 52. Re1 {[%emt 0:01:09]} e2 {[%emt 0:00:17]} 53. Kd4 {[%emt 0:00:24]} Kf6 {[%emt 0:00:04]} 54. Kd3 {[%emt 0:00:18]} Kf5 {[%emt 0:00:04]} 0-1

[Event "EYCC Girls-U14 2019"]
[Site "Bratislava"]
[Date "2019.08.05"]
[Round "4.3"]
[White "Sumarriva Paulin, Laura"]
[Black "Yakimova, Mariya"]
[Result "0-1"]
[ECO "E61"]
[WhiteElo "1861"]
[BlackElo "2250"]
[Annotator "NA"]
[PlyCount "98"]
[EventDate "2019.08.02"]
[EventType "swiss"]
[EventCountry "SVK"]
[SourceTitle "playchess.com"]
[Source "ChessBase"]
[SourceQuality "1"]
[TimeControl "40/5400+30:1800+30"]

1. d4 {[%emt 0:00:00]} Nf6 {[%emt 0:00:00]} 2. c4 {[%emt 0:00:00]} g6 {[%emt 0:00:00]} 3. Nc3 {[%emt 0:00:00]} Bg7 {[%emt 0:00:00]} 4. Bg5 {[%emt 0:00:03]} d6 {[%emt 0:00:00]} 5. h3 {[%emt 0:00:12]} O-O {[%emt 0:00:01]} 6. Nf3 {[%emt 0:00:17]} c5 {[%emt 0:00:19]} 7. e3 {[%emt 0:00:35]} h6 {[%emt 0:07:26]} 8. Bh4 {[%emt 0:00:12]} g5 {[%emt 0:03:08]} 9. Bg3 {[%emt 0:00:31]} Qb6 {[%emt 0:00:07]} 10. Qd2 {[%emt 0:21:48]} Bf5 {[%emt 0:01:04]} 11. Be2 {[%emt 0:00:58]} Nc6 {[%emt 0:02:07]} 12. O-O {[%emt 0:06:57]} Ne4 {[%emt 0:05:21]} 13. Nxe4 {[%emt 0:04:09]} Bxe4 {[%emt 0:00:04]} 14. d5 {[%emt 0:08:28]} Nb4 {[%emt 0:14:21]} 15. Ne1 {[%emt 0:12:10]} Rab8 {[%emt 0:11:33]} 16. f3 {[%emt 0:06:35]} Bh7 {[%emt 0:00:24]} 17. e4 {[%emt 0:00:53]} f5 {[%emt 0:02:05]} 18. a3 {[%emt 0:12:17]} Na6 {[%emt 0:00:32]} 19. Rb1 {[%emt 0:00:24]} fxe4 {[%emt 0:01:33]} 20. fxe4 {[%emt 0:00:13]} Bxe4 {[%emt 0:04:13]} 21. Rxf8+ {[%emt 0:05:33]} Rxf8 {[%emt 0:00:11]} 22. Bd3 {[%emt 0:00:07]} Qb3 {[%emt 0:19:00]} 23. Qe2 {[%emt 0:10:24]} Bxd3 {[%emt 0:00:38]} 24. Nxd3 {[%emt 0:00:09]} Qxc4 {[%emt 0:03:30]} 25. Qe6+ {[%emt 0:03:04]} Kh8 {[%emt 0:00:16]} 26. Nf2 {[%emt 0:01:06]} Nc7 {[%emt 0:11:29]} 27. Qxe7 {[%emt 0:01:03]} Nxd5 {[%emt 0:00:10]} 28. Qxd6 {[%emt 0:02:29]} Nf4 {[%emt 0:00:17]} 29. Bxf4 {[%emt 0:00:40]} Qxf4 {[%emt 0:00:12]} 30. Qxf4 {[%emt 0:01:30]} gxf4 {[%emt 0:01:44]} 31. Ne4 {[%emt 0:01:00]} Bd4+ {[%emt 0:00:07]} 32. Kf1 {[%emt 0:00:44]} b6 {[%emt 0:03:41]} 33. Ke2 {[%emt 0:00:46]} Kg7 {[%emt 0:01:01]} 34. Kf3 {[%emt 0:00:12]} Kg6 {[%emt 0:01:03]} 35. Nd6 {[%emt 0:00:58]} a6 {[%emt 0:08:11]} 36. Nc4 {[%emt 0:00:51]} b5 {[%emt 0:00:45]} 37. Nd2 {[%emt 0:00:16]} c4 {[%emt 0:01:02]} 38. Ne4 {[%emt 0:00:30]} Kf5 {[%emt 0:00:37]} 39. Nd6+ {[%emt 0:00:35]} Ke5 {[%emt 0:00:36]} 40. Ne4 {[%emt 0:00:00]} Rc8 {[%emt 0:00:00]} 41. Nf2 {[%emt 0:13:06]} Bxf2 {[%emt 0:08:58]} 42. Kxf2 {[%emt 0:00:18]} Rd8 {[%emt 0:00:13]} 43. Re1+ {[%emt 0:02:05]} Kf5 {[%emt 0:00:16]} 44. g4+ {[%emt 0:01:02]} fxg3+ {[%emt 0:00:56]} 45. Kxg3 {[%emt 0:00:11]} Rd2 {[%emt 0:01:39]} 46. Rb1 {[%emt 0:02:40]} Kg5 {[%emt 0:00:46]} 47. a4 {[%emt 0:01:50]} Rd3+ {[%emt 0:00:24]} 48. Kg2 {[%emt 0:00:59]} Rb3 {[%emt 0:00:28]} 49. axb5 {[%emt 0:00:34]} axb5 {[%emt 0:00:05]} 0-1

[Event "EYCC Girls-U14 2019"]
[Site "Bratislava"]
[Date "2019.08.05"]
[Round "4.4"]
[White "Hakobyan, Astghik"]
[Black "Toncheva, Nadya"]
[Result "1-0"]
[ECO "B38"]
[WhiteElo "1863"]
[BlackElo "2087"]
[Annotator "NA"]
[PlyCount "73"]
[EventDate "2019.08.02"]
[EventType "swiss"]
[EventCountry "SVK"]
[SourceTitle "playchess.com"]
[Source "ChessBase"]
[SourceQuality "1"]
[TimeControl "40/5400+30:1800+30"]

1. e4 {[%emt 0:00:00]} c5 {[%emt 0:00:00]} 2. Nf3 {[%emt 0:00:00]} Nc6 {[%emt 0:00:00]} 3. d4 {[%emt 0:00:00]} cxd4 {[%emt 0:00:00]} 4. Nxd4 {[%emt 0:00:00]} g6 {[%emt 0:00:00]} 5. c4 {[%emt 0:00:06]} Bg7 {[%emt 0:00:00]} 6. Be3 {[%emt 0:00:21]} Nf6 {[%emt 0:00:01]} 7. Nc3 {[%emt 0:00:05]} O-O {[%emt 0:00:05]} 8. Be2 {[%emt 0:00:07]} d6 {[%emt 0:00:05]} 9. O-O {[%emt 0:00:08]} Bd7 {[%emt 0:00:16]} 10. Re1 {[%emt 0:00:07]} Nxd4 {[%emt 0:01:13]} 11. Bxd4 {[%emt 0:00:06]} Bc6 {[%emt 0:00:02]} 12. Bd3 {[%emt 0:00:07]} Nd7 {[%emt 0:00:30]} 13. Bxg7 {[%emt 0:00:08]} Kxg7 {[%emt 0:00:04]} 14. Qd2 {[%emt 0:00:16]} a5 {[%emt 0:02:06]} 15. Rac1 {[%emt 0:02:00]} Qb6 {[%emt 0:01:55]} 16. Nd5 {[%emt 0:00:25]} Bxd5 {[%emt 0:00:17]} 17. exd5 {[%emt 0:00:02]} Ne5 {[%emt 0:04:07]} 18. Bf1 {[%emt 0:01:15]} Rfc8 {[%emt 0:03:31]} 19. b3 {[%emt 0:00:20]} Rc7 {[%emt 0:02:19]} 20. Re3 {[%emt 0:02:31]} Kg8 {[%emt 0:14:09]} 21. Be2 {[%emt 0:08:34]} Re8 {[%emt 0:10:48]} 22. f4 {[%emt 0:21:47]} Nd7 {[%emt 0:00:08]} 23. Kh1 {[%emt 0:00:15]} Qc5 {[%emt 0:09:38]} 24. f5 {[%emt 0:10:13]} Nf6 {[%emt 0:12:23]} 25. fxg6 {[%emt 0:01:37]} hxg6 {[%emt 0:00:15]} 26. Rf1 {[%emt 0:01:27]} Nh7 {[%emt 0:17:30]} 27. Rh3 {[%emt 0:04:40]} Nf8 {[%emt 0:00:03]} 28. Qf4 {[%emt 0:01:37]} f5 {[%emt 0:01:58]} 29. Qh4 {[%emt 0:03:08]} e5 {[%emt 0:03:59]} 30. Qh8+ {[%emt 0:14:42]} Kf7 {[%emt 0:00:04]} 31. g4 {[%emt 0:00:25]} f4 {[%emt 0:00:34]} 32. g5 {[%emt 0:00:24]} Ree7 {[%emt 0:00:58]} 33. Qf6+ {[%emt 0:01:58]} Ke8 {[%emt 0:00:01]} 34. Bd3 {[%emt 0:04:57]} Rg7 {[%emt 0:14:30]} 35. Rh8 {[%emt 0:01:06]} Rcf7 {[%emt 0:00:04]} 36. Rxf8+ {[%emt 0:00:24]} Rxf8 {[%emt 0:00:03]} 37. Qxg7 {[%emt 0:00:06]} 1-0

[Event "EYCC Girls-U14 2019"]
[Site "Bratislava"]
[Date "2019.08.05"]
[Round "4.5"]
[White "Nur-Mukhametova, Alisa"]
[Black "Nadzamova, Viktoria"]
[Result "1-0"]
[ECO "A05"]
[WhiteElo "2126"]
[BlackElo "1854"]
[Annotator "NA"]
[PlyCount "85"]
[EventDate "2019.08.02"]
[EventType "swiss"]
[EventCountry "SVK"]
[SourceTitle "playchess.com"]
[Source "ChessBase"]
[SourceQuality "1"]
[TimeControl "40/5400+30:1800+30"]

1. Nf3 {[%emt 0:00:00]} Nf6 {[%emt 0:00:00]} 2. g3 {[%emt 0:00:06]} d5 {[%emt 0:00:04]} 3. Bg2 {[%emt 0:00:13]} e6 {[%emt 0:00:27]} 4. O-O {[%emt 0:00:13]} Bd6 {[%emt 0:00:27]} 5. d3 {[%emt 0:03:52]} b6 {[%emt 0:00:49]} 6. e4 {[%emt 0:02:23]} dxe4 {[%emt 0:07:59]} 7. Ng5 {[%emt 0:01:33]} Bb7 {[%emt 0:06:45]} 8. Nc3 {[%emt 0:13:07]} O-O {[%emt 0:06:22]} 9. Ngxe4 {[%emt 0:01:15]} Nxe4 {[%emt 0:02:39]} 10. Nxe4 {[%emt 0:00:03]} Nc6 {[%emt 0:01:11]} 11. d4 {[%emt 0:03:24]} Na5 {[%emt 0:05:45]} 12. b3 {[%emt 0:08:25]} f5 {[%emt 0:02:42]} 13. Nxd6 {[%emt 0:06:03]} Bxg2 {[%emt 0:01:08]} 14. Kxg2 {[%emt 0:00:03]} cxd6 {[%emt 0:00:37]} 15. Qe2 {[%emt 0:05:05]} Qf6 {[%emt 0:02:28]} 16. Bf4 {[%emt 0:03:42]} Nc6 {[%emt 0:03:11]} 17. c3 {[%emt 0:09:36]} e5 {[%emt 0:02:02]} 18. Qc4+ {[%emt 0:00:35]} Kh8 {[%emt 0:00:04]} 19. Qxc6 {[%emt 0:00:56]} exf4 {[%emt 0:00:05]} 20. Qf3 {[%emt 0:01:24]} Rac8 {[%emt 0:02:37]} 21. Rac1 {[%emt 0:11:38]} fxg3 {[%emt 0:08:13]} 22. fxg3 {[%emt 0:00:12]} Rce8 {[%emt 0:03:24]} 23. Rce1 {[%emt 0:00:43]} Rxe1 {[%emt 0:02:32]} 24. Rxe1 {[%emt 0:00:02]} Qg5 {[%emt 0:03:14]} 25. h4 {[%emt 0:05:08]} Qf6 {[%emt 0:02:36]} 26. d5 {[%emt 0:02:22]} Kg8 {[%emt 0:09:53]} 27. Re6 {[%emt 0:02:00]} Qd8 {[%emt 0:00:06]} 28. Qf4 {[%emt 0:01:42]} Rf6 {[%emt 0:03:44]} 29. Qg5 {[%emt 0:01:21]} Kf8 {[%emt 0:02:15]} 30. Rxf6+ {[%emt 0:01:17]} gxf6 {[%emt 0:00:15]} 31. Qxf5 {[%emt 0:00:26]} Qe7 {[%emt 0:00:10]} 32. Qe6 {[%emt 0:12:36]} Qxe6 {[%emt 0:01:28]} 33. dxe6 {[%emt 0:00:02]} Ke7 {[%emt 0:00:00]} 34. Kf3 {[%emt 0:00:30]} Kxe6 {[%emt 0:00:06]} 35. Kg4 {[%emt 0:00:28]} Ke7 {[%emt 0:03:44]} 36. Kf5 {[%emt 0:02:39]} d5 {[%emt 0:02:09]} 37. a4 {[%emt 0:01:47]} a6 {[%emt 0:03:21]} 38. b4 {[%emt 0:00:34]} Kf7 {[%emt 0:01:51]} 39. a5 {[%emt 0:00:52]} bxa5 {[%emt 0:01:09]} 40. bxa5 {[%emt 0:00:00]} Ke7 {[%emt 0:00:00]} 41. g4 {[%emt 0:04:10]} Kf7 {[%emt 0:12:10]} 42. g5 {[%emt 0:01:21]} fxg5 {[%emt 0:00:12]} 43. Kxg5 {[%emt 0:00:31]} 1-0

[Event "EYCC Girls-U14 2019"]
[Site "Bratislava"]
[Date "2019.08.05"]
[Round "4.6"]
[White "Roebers, Eline"]
[Black "Sovina, Maria"]
[Result "1/2-1/2"]
[ECO "B33"]
[WhiteElo "2069"]
[BlackElo "1757"]
[Annotator "NA"]
[PlyCount "93"]
[EventDate "2019.08.02"]
[EventType "swiss"]
[EventCountry "SVK"]
[SourceTitle "playchess.com"]
[Source "ChessBase"]
[SourceQuality "1"]
[TimeControl "40/5400+30:1800+30"]

1. e4 {[%emt 0:00:00]} c5 {[%emt 0:00:00]} 2. Nf3 {[%emt 0:00:00]} Nc6 {[%emt 0:00:00]} 3. d4 {[%emt 0:00:04]} cxd4 {[%emt 0:00:00]} 4. Nxd4 {[%emt 0:00:06]} Nf6 {[%emt 0:00:00]} 5. Nc3 {[%emt 0:00:24]} e5 {[%emt 0:00:00]} 6. Ndb5 {[%emt 0:00:32]} d6 {[%emt 0:00:00]} 7. Bg5 {[%emt 0:00:42]} a6 {[%emt 0:00:00]} 8. Na3 {[%emt 0:00:06]} b5 {[%emt 0:00:00]} 9. Nd5 {[%emt 0:00:59]} Be7 {[%emt 0:00:05]} 10. Bxf6 {[%emt 0:00:19]} Bxf6 {[%emt 0:00:05]} 11. c3 {[%emt 0:02:49]} Bg5 {[%emt 0:00:05]} 12. Be2 {[%emt 0:03:33]} O-O {[%emt 0:02:49]} 13. O-O {[%emt 0:01:13]} Ne7 {[%emt 0:12:42]} 14. c4 {[%emt 0:09:00]} Nxd5 {[%emt 0:09:21]} 15. Qxd5 {[%emt 0:03:42]} Be6 {[%emt 0:01:02]} 16. Qd1 {[%emt 0:02:08]} b4 {[%emt 0:03:23]} 17. Nc2 {[%emt 0:00:46]} Qb6 {[%emt 0:03:07]} 18. b3 {[%emt 0:06:22]} f5 {[%emt 0:11:42]} 19. Bf3 {[%emt 0:14:06]} Ra7 {[%emt 0:11:34]} 20. Qe2 {[%emt 0:07:44]} a5 {[%emt 0:05:52]} 21. exf5 {[%emt 0:09:35]} Bxf5 {[%emt 0:01:23]} 22. Be4 {[%emt 0:01:28]} Bxe4 {[%emt 0:05:15]} 23. Qxe4 {[%emt 0:00:06]} a4 {[%emt 0:07:03]} 24. Rad1 {[%emt 0:11:55]} axb3 {[%emt 0:05:12]} 25. axb3 {[%emt 0:00:05]} Ra2 {[%emt 0:01:50]} 26. Rd5 {[%emt 0:07:57]} Ra5 {[%emt 0:06:39]} 27. Rxa5 {[%emt 0:03:44]} Qxa5 {[%emt 0:00:01]} 28. Qg4 {[%emt 0:08:47]} Be7 {[%emt 0:07:54]} 29. Qe6+ {[%emt 0:02:27]} Rf7 {[%emt 0:00:02]} 30. Ra1 {[%emt 0:02:22]} Qb6 {[%emt 0:00:24]} 31. Ne3 {[%emt 0:00:27]} g6 {[%emt 0:01:24]} 32. Qd5 {[%emt 0:01:25]} Bg5 {[%emt 0:00:45]} 33. Qd3 {[%emt 0:00:52]} Ra7 {[%emt 0:01:37]} 34. Rxa7 {[%emt 0:00:29]} Qxa7 35. g3 {[%emt 0:00:33]} Bxe3 {[%emt 0:00:33]} 36. fxe3 {[%emt 0:00:28]} Qa1+ {[%emt 0:00:41]} 37. Kf2 {[%emt 0:00:25]} Qb2+ {[%emt 0:00:27]} 38. Kf3 {[%emt 0:00:31]} Qxh2 {[%emt 0:00:58]} 39. Qxd6 {[%emt 0:00:33]} Qh1+ {[%emt 0:01:30]} 40. Kf2 {[%emt 0:00:00]} Qh2+ {[%emt 0:00:00]} 41. Kf3 {[%emt 0:00:27]} Qh1+ {[%emt 0:07:19]} 42. Ke2 {[%emt 0:22:28]} e4 {[%emt 0:11:33]} 43. Qe6+ {[%emt 0:06:10]} Kg7 {[%emt 0:01:23]} 44. Qe7+ {[%emt 0:01:40]} Kg8 {[%emt 0:00:38]} 45. Qe8+ {[%emt 0:00:27]} Kg7 {[%emt 0:00:08]} 46. Qe7+ {[%emt 0:00:04]} Kg8 {[%emt 0:00:59]} 47. Qe8+ {[%emt 0:00:29]} 1/2-1/2

[Event "EYCC Girls-U14 2019"]
[Site "Bratislava"]
[Date "2019.08.05"]
[Round "4.7"]
[White "Hrebenshchykova, Yelyzaveta"]
[Black "Bondareva, Daria"]
[Result "0-1"]
[ECO "A88"]
[WhiteElo "1955"]
[BlackElo "1998"]
[Annotator "NA"]
[PlyCount "138"]
[EventDate "2019.08.02"]
[EventType "swiss"]
[EventCountry "SVK"]
[SourceTitle "playchess.com"]
[Source "ChessBase"]
[SourceQuality "1"]
[TimeControl "40/5400+30:1800+30"]

1. Nf3 {[%emt 0:00:00]} d6 {[%emt 0:02:47]} 2. d4 {[%emt 0:02:42]} g6 {[%emt 0:00:38]} 3. c4 {[%emt 0:01:51]} Bg7 {[%emt 0:02:58]} 4. Nc3 {[%emt 0:01:34]} f5 {[%emt 0:08:36]} 5. g3 {[%emt 0:05:39]} Nf6 {[%emt 0:02:05]} 6. Bg2 {[%emt 0:00:09]} O-O {[%emt 0:02:38]} 7. O-O {[%emt 0:00:59]} c6 {[%emt 0:06:26]} 8. b3 {[%emt 0:05:34]} Qc7 {[%emt 0:01:20]} 9. Ba3 {[%emt 0:05:48]} Rd8 {[%emt 0:03:34]} 10. Qc2 {[%emt 0:09:17]} Nbd7 {[%emt 0:09:57]} 11. Rad1 {[%emt 0:19:28]} Nf8 {[%emt 0:04:48]} 12. Rfe1 {[%emt 0:01:14]} Rb8 {[%emt 0:07:54]} 13. Bb2 {[%emt 0:10:36]} Re8 {[%emt 0:06:42]} 14. h3 {[%emt 0:03:39]} Bd7 {[%emt 0:05:32]} 15. e4 {[%emt 0:00:47]} fxe4 {[%emt 0:03:06]} 16. Nxe4 {[%emt 0:00:04]} Nxe4 {[%emt 0:01:44]} 17. Qxe4 {[%emt 0:00:07]} b5 {[%emt 0:05:44]} 18. cxb5 {[%emt 0:01:47]} cxb5 {[%emt 0:02:51]} 19. Qe2 {[%emt 0:08:51]} e6 {[%emt 0:04:19]} 20. Rc1 {[%emt 0:03:01]} Qb6 {[%emt 0:01:26]} 21. b4 {[%emt 0:00:39]} Bc6 {[%emt 0:01:34]} 22. Qd2 {[%emt 0:06:28]} Bd5 {[%emt 0:03:13]} 23. Ng5 {[%emt 0:04:28]} Bc4 {[%emt 0:02:18]} 24. d5 {[%emt 0:05:11]} e5 {[%emt 0:02:05]} 25. a4 {[%emt 0:00:06]} Qb7 {[%emt 0:04:24]} 26. Ne4 {[%emt 0:00:42]} Red8 {[%emt 0:00:15]} 27. h4 {[%emt 0:01:04]} Kh8 {[%emt 0:00:41]} 28. Ng5 {[%emt 0:01:06]} h6 {[%emt 0:00:20]} 29. Nh3 {[%emt 0:00:25]} Nd7 {[%emt 0:00:56]} 30. Qc2 {[%emt 0:00:54]} Bxd5 {[%emt 0:01:17]} 31. Bxd5 {[%emt 0:00:06]} Qxd5 {[%emt 0:00:02]} 32. Qxg6 {[%emt 0:00:45]} Nf8 {[%emt 0:01:19]} 33. Qg4 {[%emt 0:00:34]} Qe6 {[%emt 0:01:53]} 34. Qxe6 {[%emt 0:00:38]} Nxe6 {[%emt 0:00:02]} 35. a5 {[%emt 0:00:26]} Rbc8 {[%emt 0:00:57]} 36. Kg2 {[%emt 0:00:43]} Rc4 {[%emt 0:00:50]} 37. Ba3 {[%emt 0:00:30]} Nd4 {[%emt 0:00:33]} 38. Rxc4 {[%emt 0:00:35]} bxc4 {[%emt 0:00:01]} 39. Rc1 {[%emt 0:00:27]} Rc8 {[%emt 0:00:34]} 40. Bb2 {[%emt 0:00:00]} Nb5 {[%emt 0:00:00]} 41. f3 {[%emt 0:06:28]} d5 {[%emt 0:10:02]} 42. Nf2 {[%emt 0:00:47]} d4 {[%emt 0:00:59]} 43. Kf1 {[%emt 0:06:40]} Nd6 {[%emt 0:04:34]} 44. Ke2 {[%emt 0:07:18]} e4 {[%emt 0:03:23]} 45. Ba1 {[%emt 0:02:17]} e3 {[%emt 0:02:43]} 46. Ne4 {[%emt 0:01:32]} Nxe4 {[%emt 0:03:42]} 47. fxe4 {[%emt 0:00:05]} c3 {[%emt 0:00:55]} 48. Kd3 {[%emt 0:02:39]} Rf8 {[%emt 0:01:59]} 49. b5 {[%emt 0:01:02]} Be5 {[%emt 0:00:51]} 50. b6 {[%emt 0:01:13]} axb6 {[%emt 0:00:57]} 51. axb6 {[%emt 0:00:06]} Rf2 {[%emt 0:00:43]} 52. b7 {[%emt 0:03:09]} Rd2+ {[%emt 0:01:38]} 53. Kc4 {[%emt 0:00:05]} Kh7 {[%emt 0:01:36]} 54. Kd5 {[%emt 0:02:50]} Bb8 {[%emt 0:00:04]} 55. e5 {[%emt 0:01:15]} e2 {[%emt 0:01:07]} 56. Re1 {[%emt 0:00:16]} Kg8 {[%emt 0:01:51]} 57. Ke6 {[%emt 0:01:02]} c2 {[%emt 0:00:58]} 58. Bb2 {[%emt 0:00:29]} Kf8 {[%emt 0:01:56]} 59. Kd7 {[%emt 0:00:38]} Bxe5 {[%emt 0:00:19]} 60. Ba3+ {[%emt 0:00:04]} Kf7 {[%emt 0:00:15]} 61. Bd6 {[%emt 0:00:06]} Bxd6 {[%emt 0:00:15]} 62. Kxd6 {[%emt 0:00:04]} c1=Q {[%emt 0:00:14]} 63. b8=Q {[%emt 0:01:35]} Qa3+ {[%emt 0:00:25]} 64. Kd5 {[%emt 0:00:27]} Qf3+ {[%emt 0:00:27]} 65. Kc5 {[%emt 0:00:29]} Rc2+ {[%emt 0:01:02]} 66. Kxd4 {[%emt 0:00:07]} Rd2+ {[%emt 0:00:13]} 67. Kc4 {[%emt 0:00:24]} Qd5+ {[%emt 0:00:10]} 68. Kc3 {[%emt 0:00:08]} Qd4+ {[%emt 0:00:04]} 69. Kb3 {[%emt 0:00:14]} Rb2+ {[%emt 0:00:04]} 0-1

[Event "EYCC Girls-U14 2019"]
[Site "Bratislava"]
[Date "2019.08.05"]
[Round "4.8"]
[White "Kiousi, Panagiota"]
[Black "Kirchei, Viktoriia"]
[Result "0-1"]
[ECO "A46"]
[WhiteElo "1895"]
[BlackElo "2006"]
[Annotator "NA"]
[PlyCount "76"]
[EventDate "2019.08.02"]
[EventType "swiss"]
[EventCountry "SVK"]
[SourceTitle "playchess.com"]
[Source "ChessBase"]
[SourceQuality "1"]
[TimeControl "40/5400+30:1800+30"]

1. d4 {[%emt 0:00:00]} Nf6 {[%emt 0:00:00]} 2. Nf3 {[%emt 0:00:00]} e6 {[%emt 0:00:00]} 3. g3 {[%emt 0:00:00]} d5 {[%emt 0:00:23]} 4. Bg2 {[%emt 0:00:00]} Be7 {[%emt 0:00:06]} 5. c4 {[%emt 0:00:00]} O-O {[%emt 0:00:14]} 6. O-O {[%emt 0:00:03]} dxc4 {[%emt 0:00:17]} 7. Qa4 {[%emt 0:00:17]} a6 {[%emt 0:02:26]} 8. Qxc4 {[%emt 0:00:06]} b5 {[%emt 0:00:04]} 9. Qc2 {[%emt 0:00:07]} Bb7 {[%emt 0:00:06]} 10. Bd2 {[%emt 0:02:08]} Be4 {[%emt 0:00:12]} 11. Qc1 {[%emt 0:00:30]} c6 {[%emt 0:00:06]} 12. e3 {[%emt 0:13:36]} Nbd7 {[%emt 0:01:24]} 13. Nc3 {[%emt 0:05:20]} Bg6 {[%emt 0:02:21]} 14. Nh4 {[%emt 0:03:40]} Rc8 {[%emt 0:00:35]} 15. Nxg6 {[%emt 0:00:25]} hxg6 {[%emt 0:00:07]} 16. Qd1 {[%emt 0:13:51]} Qb6 {[%emt 0:01:15]} 17. a4 {[%emt 0:02:27]} c5 {[%emt 0:02:01]} 18. Ne2 {[%emt 0:05:57]} b4 {[%emt 0:04:58]} 19. a5 {[%emt 0:02:37]} Qb8 {[%emt 0:05:08]} 20. dxc5 {[%emt 0:01:39]} Nxc5 {[%emt 0:07:11]} 21. Nd4 {[%emt 0:01:42]} Rfd8 {[%emt 0:05:01]} 22. Rc1 {[%emt 0:14:15]} Nfe4 {[%emt 0:07:00]} 23. f4 {[%emt 0:08:24]} Nxd2 {[%emt 0:07:27]} 24. Qxd2 {[%emt 0:00:06]} Nb3 {[%emt 0:00:55]} 25. Rxc8 {[%emt 0:00:24]} Qxc8 {[%emt 0:00:07]} 26. Qf2 {[%emt 0:03:44]} Nxd4 {[%emt 0:01:15]} 27. exd4 {[%emt 0:00:07]} Rxd4 {[%emt 0:02:57]} 28. Kh1 {[%emt 0:00:36]} Qd8 {[%emt 0:04:22]} 29. Rc1 {[%emt 0:04:37]} Rd2 {[%emt 0:03:49]} 30. Qf1 {[%emt 0:04:34]} Rxb2 {[%emt 0:06:32]} 31. Qxa6 {[%emt 0:02:15]} Qd2 {[%emt 0:00:18]} 32. Qa8+ {[%emt 0:02:23]} Kh7 {[%emt 0:00:21]} 33. Rf1 {[%emt 0:04:50]} b3 {[%emt 0:01:12]} 34. a6 {[%emt 0:02:52]} Bc5 {[%emt 0:01:47]} 35. Qf3 {[%emt 0:00:28]} Rc2 {[%emt 0:00:53]} 36. Rd1 {[%emt 0:00:22]} Rc1 {[%emt 0:00:56]} 37. Rxc1 {[%emt 0:01:43]} Qxc1+ {[%emt 0:00:04]} 38. Qf1 {[%emt 0:00:10]} b2 {[%emt 0:00:08]} 0-1